{"text_format":"2","workbook":"xlsx","n_sheets":4,"sheets":["Consultorio","Resumen médico","Generico","Formulario"],"not_rendered":{"charts":0,"images":1,"macros":0,"external_links":0,"defined_names":12,"comments":1,"pivot_tables":0},"unopened":[],"bounds":{"document_bytes":16777216,"sheet_cells":100000,"run_cost":"one","rows_first":2000,"rows_last":500,"rows_between":2000,"halvings":0,"cell_chars":16384,"cell_head_chars":4096},"cells_cut":0,"cells_raw":0,"read":"whole","date_system":"1900"}

{"sheet":"Consultorio","index":0,"n_rows":51,"n_cols":13,"rows_kept":51,"cut":false,"hidden":true,"merged":[]}
[]
[null,null,"Analisis financiero base de un consultorío médico"]
[]
[null,null,"Costos del consultorio al mes"]
[]
[null,null,"Personal"]
[null,null,null,"Sueldo del médico",20000000,"Costo integral incluídos todos los recargos",null,null,null,"detalle del factor prestacional"]
[null,null,null,"Salario de la secretaria",1623500,"Salario mínimo",{"$nulls":4},"Salud (empleador)",8.5000000000000006E-2]
[null,null,null,"Factor prestacional",{"$f":"M16","v":0.46851999999999999},{"$nulls":5},"Pensión (empleador)",0.12]
[{"$nulls":10},"ARL (riesgo 1)",5.2199999999999998E-3]
[null,null,"Adminsitrativos",{"$nulls":7},"Caja de compensación",0.04]
[null,null,null,"Arriendo",2000000,{"$nulls":5},"Cesantías",8.3299999999999999E-2]
[null,null,null,"Servicios públicos",150000,{"$nulls":5},"Intereses cesantías",0.01]
[null,null,null,"Impuestos y otros",100000,"Tarifa anual lleva a un costo mensual",{"$nulls":4},"Prima de servicios",8.3299999999999999E-2]
[{"$nulls":10},"Vacaciones",4.1700000000000001E-2]
[null,null,"Subtotal mensual",null,{"$f":"SUM(E7:E15)","v":23873500.468520001},{"$nulls":7},{"$f":"SUM(L8:L15)","v":0.46851999999999999}]
[]
[null,null,"Proceso de agendamiento"]
[null,null,null,"Tiempo de la secretaria dedicado al agendamiento de pacientes",0.2,"El resto del tiempo lo dedica a labores adminsrativas, de servicio, historias clínicas etc"]
[]
[null,null,null,"Número de pacientes que agenda en un mes",80]
[]
[null,null,null,"Ineficiencia en el agendamiento",0.1,"Falta de confirmación, cancelaciones etc"]
[]
[null,null,null,"Costo de oportunidad de una cita para el Dr."]
[{"$nulls":4},{"$f":"w_médico/pacientes_agendados_mes","v":250000}]
[null,null,null,"Pérdida estimada mensual por ineficiencia en el proceso de agendamiento"]
[{"$nulls":4},{"$f":"pacientes_agendados_mes*ineficiencia*E26","v":2000000}]
[]
[null,null,null,"Costos fijos proporcionado al proceso de agendamiento"]
[{"$nulls":4},{"$f":"(arriendo+servicios_públicos+impuestos)*tiempo_agendamiento_secre","v":450000}]
[]
[null,null,null,"Costo directo"]
[{"$nulls":4},{"$f":"w_secretaria*(1+factor_prestacional)*tiempo_agendamiento_secre","v":476828.44400000008}]
[]
[]
[null,null,null,"Costo mensual del agendamiento"]
[{"$nulls":4},{"$f":"E34+costos_fijos_asumidos+perdida_x_ineficiencia","v":2926828.4440000001}]
[]
[null,null,null,"Costo por cita",{"$f":"E38/pacientes_agendados_mes","v":36585.35555}]
[]
[null,null,"Con un agente virtual"]
[]
[null,null,null,"Suposiciones del resultado obtenido"]
[null,null,null,"Eliminamos las pérdidas por ineficiencia",{"$f":"perdida_x_ineficiencia","v":2000000}]
[null,null,null,"Aumentamos las citas agendadas",100]
[null,null,null,"Continuamos con la secreataria"]
[null,null,null,"Se mantienen los mismos costos fijos"]
[]
[null,null,null,"presupuesto disponible para la IA"]
[{"$nulls":4},{"$f":"E38-costo_directo-costos_fijos_asumidos","v":2000000}]

{"sheet":"Resumen médico","index":1,"n_rows":16,"n_cols":5,"rows_kept":16,"cut":false,"hidden":true,"merged":[]}
[]
[]
[]
[null,null,"Consultorio médico"]
[]
[null,null,null,"Salario MD",20000000]
[null,null,null,"Salario secretaria",{"$f":"w_secretaria","v":1623500}]
[null,null,null,"Costos de personal (con prestaciones)",{"$f":"w_médico+(w_secretaria*(1+factor_prestacional))","v":22384142.219999999}]
[null,null,null,"Costos fijos",{"$f":"Consultorio!E16","v":23873500.468520001}]
[]
[null,null,"Agendamiento"]
[null,null,null,"Tiempo dedicado a agendamiento",{"$f":"tiempo_agendamiento_secre","v":0.2}]
[null,null,null,"Pacientes agendados al mes",{"$f":"pacientes_agendados_mes","v":80}]
[null,null,null,"Ineficiencias en agendamiento",{"$f":"ineficiencia","v":0.1}]
[]
[null,null,null,"Pérdidas por agendamiento",{"$f":"(E6/E13)*(E13*E14)","v":2000000}]

{"sheet":"Generico","index":2,"n_rows":51,"n_cols":5,"rows_kept":51,"cut":false,"hidden":true,"merged":[]}
[]
[1,"Identificar en qué tareas repetitivas puede haber reemplazo o apoyo parcial"]
[]
[2,"Medir el impacto en productividad y eficiencia operativa"]
[]
[3,"Calcular el presupuesto máximo disponible para invertir en un agente virtual"]
[]
[4,"Estimar su retorno económico (ROI)"]
[]
[]
[null,1]
[null,null,"¿Qué proceso repetitivo se desea automatizar o asistir?"]
[]
[null,null,"¿Quién lo realiza hoy? ¿Con qué frecuencia?"]
[]
[null,2]
[null,null,"Tipo de costo","Variable","Ej médico"]
[null,null,"Salario del personal involucrado","Costo_personal",{"$f":"w_secretaria","v":1623500}]
[null,null,"Carga prestacional","Costo_prestacional",{"$f":"factor_prestacional","v":0.46851999999999999}]
[null,null,"Tiempo dedicado al proceso (%)","Porcentaje_tiempo",{"$f":"tiempo_agendamiento_secre","v":0.2}]
[null,null,"Costos fijos asociados (%)","Costos_fijos_prorrateados",{"$f":"costos_fijos_asumidos","v":450000}]
[null,null,"Pérdidas por ineficiencias","Perdidas_operativas",{"$f":"perdida_x_ineficiencia","v":2000000}]
[null,null,"# de transacciones esperadas ","trasnacciones por mes",80]
[]
[]
[null,null,"Formula"]
[null,null,"\\{Costo_total_actual} = (Costo_personal + Costo_prestacional) * Porcentaje_tiempo + (%Costos_fijos_prorrateados + Perdidas_operativas)"]
[]
[null,null,{"$f":"((E18*(1+E19))*E20)+E21+E22","v":2926828.4440000001}]
[null,null,{"$f":"C29/E23","v":36585.35555}]
[]
[null,3,"Identifica las mejoras esperadas con el agente virtual"]
[]
[null,null,null,"Qué ineficiencias se eliminan?"]
[]
[null,null,null,"¿Qué tareas se pueden reemplazar o complementar?"]
[]
[null,null,null,"¿Se aumenta el volumen de atención/productividad?"]
[]
[null,4,"Presupuesto máximo por agente"]
[null,null,null,"Costo total actual - costo agente"]
[]
[null,5,"Cálculo del ROI del agente"]
[null,null,null,"Ahorros esperados","AE"]
[null,null,null,"Costo del agente","CA"]
[]
[null,null,null,"ROI = AE - CA/ CA"]
[]
[null,null,"ROI > 1","Buena inversión"]
[null,null,"ROI = 0","Decision no significativa"]
[null,null,"ROI < 0","No es viable"]

{"sheet":"Formulario","index":3,"n_rows":83,"n_cols":16,"rows_kept":83,"cut":false,"hidden":false,"merged":[[7,4,7,10],[30,4,30,10],[32,8,32,9],[35,8,35,9],[42,8,42,9]]}
[]
[]
[null,null,"FORMULARIO DE ANALISIS DEL RETORNO DE LA INVERSION PARA EL AGENTE VIRTUAL DE IA"]
[]
[null,null,1,"IDENTIFICACION DE LABOR A DELEGAR"]
[]
[null,null,null,"¿Qué proceso repetitivo se desea automatizar o asistir?"]
[null,"CONSULTING"]
[null,null,null,"¿Quién lo realiza hoy? ¿Con qué frecuencia?"]
[{"$nulls":8},"Frecuencia en el día"]
[{"$nulls":4},"Cargo 1",null,null,null,2,"horas"]
[{"$nulls":4},"Cargo 2",{"$nulls":4},"horas"]
[{"$nulls":4},"Cargo 3",{"$nulls":4},"horas"]
[]
[null,null,2,"COSTOS ASOCIADOS A LA LABOR"]
[]
[null,null,null,"a","Carga prestacional de la compalía",null,null,null,0.46850000000000003]
[]
[{"$nulls":4},"Salarios (en pesos colombianos sin factor prestacional)"]
[{"$nulls":4},"Cargo 1"]
[{"$nulls":4},"Cargo 2"]
[{"$nulls":4},"Cargo 3"]
[]
[{"$nulls":4},"Subtotal",{"$f":"SUM(F20:F22)","v":0}]
[]
[null,null,null,"b","Porcentaje de tiempo al mes que dedican estos cargos a esa labor"]
[]
[]
[]
[null,null,null,"c"]
[{"$nulls":4},"Costos fijos indirectos que se tienen en la compañía que deben ser asumidos por cada proceso operativo (ej Gastos administrativos)"]
[]
[{"$nulls":4},"Valor total de los costos indirectos"]
[]
[{"$nulls":4},"Costos pro rateados a la dedicación de la labor"]
[{"$nulls":8},{"$f":"I33*I28","v":0}]
[]
[null,null,null,"d"]
[{"$nulls":4},"Pérdidas por ineficiencias en la labor"]
[{"$nulls":4},"Ej, labores que no se cumplen en le eficiencia esperada por fallas humanas o del proceso"]
[]
[{"$nulls":4},"Ventas totales de la unidad de negocio donde está el procesos a optimizar"]
[]
[]
[{"$nulls":4},"# de unidades generadas o producidas en esta unidad de negocio"]
[{"$nulls":9},{"$f":"I43/I46","v":{"$error":"#DIV/0!"}}]
[]
[{"$nulls":4},"porcentaje de ineficiencia del proceso"]
[]
[]
[{"$nulls":4},"Valor de la ineficiencia",null,null,null,{"$f":"(I43/I46)*(I49*I46)","v":{"$error":"#DIV/0!"}}]
[]
[{"$nulls":4},"COSTO DE LA TRANSACCION",null,null,null,{"$f":"I51+I36+(F20*(1+I17)*I28)","v":{"$error":"#DIV/0!"}}]
[{"$nulls":4},"Costo Unitario",null,null,null,{"$f":"I53/I46","v":{"$error":"#DIV/0!"}}]
[]
[null,null,3]
[{"$nulls":4},"En cuento espera disminuir (%) las ineficiencias con la entrada del Agente Virtual"]
[{"$nulls":10},{"$f":"I49*(1-I58)","v":0},{"$f":"(I43/K64)*(K58*K64)","v":{"$error":"#DIV/0!"}}]
[]
[{"$nulls":4},"Se pueden eliminar cargos (parcial o totalmente dedicados a estas labores"]
[{"$nulls":15},1]
[]
[{"$nulls":4},"En cuento espera que su productividad aumente (% de unidades ejectuadas), con la entrada del agente de IA"]
[{"$nulls":8},0.05,null,{"$f":"I46*(1+I64)","v":0}]
[]
[]
[{"$nulls":4},"Ahorros por labores re ubicadas"]
[{"$nulls":8},{"$f":"IF(P61=1,F24*(1+I17),0)","v":0}]
[{"$nulls":4},"Nuevo costo de la transacción",{"$nulls":4},{"$f":"L58+I36+(F20*(1+I17)*I28)","v":{"$error":"#DIV/0!"}}]
[{"$nulls":4},"Ahorro por eficiencias",null,null,null,{"$f":"I53-J69","v":{"$error":"#DIV/0!"}}]
[{"$nulls":4},"Por incremento en producción",null,null,null,{"$f":"(K64-I46)*J46","v":{"$error":"#DIV/0!"}}]
[]
[{"$nulls":4},"Presupuesto para invertir",null,null,null,{"$f":"SUM(I68:I72)","v":{"$error":"#DIV/0!"}}]
[]
[]
[null,null,null,4,{"$nulls":6},"TRM"]
[{"$nulls":4},"Costo por agente",{"$nulls":5},4306]
[{"$nulls":5},"Inversión inicial",null,null,{"$f":"J78*K77","v":4306000},1000]
[{"$nulls":5},"Inversión mensual",null,null,{"$f":"J79*K77","v":2153000},500]
[]
[{"$nulls":4},"Anualizado por mes",null,null,null,{"$f":"((J78+(J79*12))/12)*K77","v":2511833.3333333335}]
[]
[{"$nulls":4},"ROI",null,null,null,{"$f":"I73-I81","v":{"$error":"#DIV/0!"}},{"$f":"IF(I83>0,\"Buena inversión\",IF(I83<0,\"No es viable\",IF(I83=0,\"Evaluarlo\")))","v":{"$error":"#DIV/0!"}}]